{"text_format":"1","workbook":"xlsx","n_sheets":5,"sheets":["Lavage","Basededonnée","Listederoulante","Tableau de bord","Feuil1"],"not_rendered":{"charts":0,"images":2,"macros":1,"external_links":0,"defined_names":6,"comments":0,"pivot_tables":0},"unopened":[],"bounds":{"document_bytes":16777216,"sheet_cells":100000,"rows_first":2000,"rows_last":500,"rows_between":2000,"halvings":0,"cell_chars":16384,"cell_head_chars":4096},"cells_cut":0,"cells_raw":0,"read":"whole","date_system":"1900"}

{"sheet":"Lavage","index":0,"n_rows":45,"n_cols":9,"rows_kept":45,"cut":false,"hidden":false,"merged":[[0,0,0,1]]}
[null,null,"Admimistratif",null,null,"Administratif"]
["Code","Date","Secteur","Syndicat","Communes","Réservoir","Cuve(s)","Capacité","Réactif"]
[310,"2015-01-16",{"$f":"_xlfn.XLOOKUP(tbllavage[[#This Row],[Code]],Tableau_basededonnée[Code],Tableau_basededonnée[Secteur],,0)","v":"Sect 412"},{"$f":"_xlfn.XLOOKUP(tbllavage[[#This Row],[Code]],Tableau_basededonnée[Code],Tableau_basededonnée[Syndicat],,0)","v":"www"},{"$f":"_xlfn.XLOOKUP(tbllavage[[#This Row],[Code]],Tableau_basededonnée[Code],Tableau_basededonnée[Communes],,0)","v":123},{"$f":"_xlfn.XLOOKUP(tbllavage[[#This Row],[Code]],Tableau_basededonnée[Code],Tableau_basededonnée[Réservoir],,0)","v":"nn"},{"$f":"_xlfn.XLOOKUP(tbllavage[[#This Row],[Code]],Tableau_basededonnée[Code],Tableau_basededonnée[Cuve(s)],,0)","v":"aa"},{"$f":"_xlfn.XLOOKUP(tbllavage[[#This Row],[Code]],Tableau_basededonnée[Code],Tableau_basededonnée[Capacité],,0)","v":"bb"},{"$f":"_xlfn.XLOOKUP(tbllavage[[#This Row],[Code]],Tableau_basededonnée[Code],Tableau_basededonnée[Réactif],,0)","v":"cc"}]
[430,"2015-01-21",{"$f":"_xlfn.XLOOKUP(tbllavage[[#This Row],[Code]],Tableau_basededonnée[Code],Tableau_basededonnée[Secteur],,0)","v":{"$error":"#N/A"}},{"$f":"_xlfn.XLOOKUP(tbllavage[[#This Row],[Code]],Tableau_basededonnée[Code],Tableau_basededonnée[Syndicat],,0)","v":{"$error":"#N/A"}},{"$f":"_xlfn.XLOOKUP(tbllavage[[#This Row],[Code]],Tableau_basededonnée[Code],Tableau_basededonnée[Communes],,0)","v":{"$error":"#N/A"}},{"$f":"_xlfn.XLOOKUP(tbllavage[[#This Row],[Code]],Tableau_basededonnée[Code],Tableau_basededonnée[Réservoir],,0)","v":{"$error":"#N/A"}},{"$f":"_xlfn.XLOOKUP(tbllavage[[#This Row],[Code]],Tableau_basededonnée[Code],Tableau_basededonnée[Cuve(s)],,0)","v":{"$error":"#N/A"}},{"$f":"_xlfn.XLOOKUP(tbllavage[[#This Row],[Code]],Tableau_basededonnée[Code],Tableau_basededonnée[Capacité],,0)","v":{"$error":"#N/A"}},{"$f":"_xlfn.XLOOKUP(tbllavage[[#This Row],[Code]],Tableau_basededonnée[Code],Tableau_basededonnée[Réactif],,0)","v":{"$error":"#N/A"}}]
[371,"2015-02-25",{"$f":"_xlfn.XLOOKUP(tbllavage[[#This Row],[Code]],Tableau_basededonnée[Code],Tableau_basededonnée[Secteur],,0)","v":"Sect 413"},{"$f":"_xlfn.XLOOKUP(tbllavage[[#This Row],[Code]],Tableau_basededonnée[Code],Tableau_basededonnée[Syndicat],,0)","v":"ddd"},{"$f":"_xlfn.XLOOKUP(tbllavage[[#This Row],[Code]],Tableau_basededonnée[Code],Tableau_basededonnée[Communes],,0)","v":126},{"$f":"_xlfn.XLOOKUP(tbllavage[[#This Row],[Code]],Tableau_basededonnée[Code],Tableau_basededonnée[Réservoir],,0)","v":"mm"},{"$f":"_xlfn.XLOOKUP(tbllavage[[#This Row],[Code]],Tableau_basededonnée[Code],Tableau_basededonnée[Cuve(s)],,0)","v":"aa"},{"$f":"_xlfn.XLOOKUP(tbllavage[[#This Row],[Code]],Tableau_basededonnée[Code],Tableau_basededonnée[Capacité],,0)","v":"bb"},{"$f":"_xlfn.XLOOKUP(tbllavage[[#This Row],[Code]],Tableau_basededonnée[Code],Tableau_basededonnée[Réactif],,0)","v":"cc"}]
[311,"2015-03-20",{"$f":"_xlfn.XLOOKUP(tbllavage[[#This Row],[Code]],Tableau_basededonnée[Code],Tableau_basededonnée[Secteur],,0)","v":"Sect 412"},{"$f":"_xlfn.XLOOKUP(tbllavage[[#This Row],[Code]],Tableau_basededonnée[Code],Tableau_basededonnée[Syndicat],,0)","v":"xxx"},{"$f":"_xlfn.XLOOKUP(tbllavage[[#This Row],[Code]],Tableau_basededonnée[Code],Tableau_basededonnée[Communes],,0)","v":124},{"$f":"_xlfn.XLOOKUP(tbllavage[[#This Row],[Code]],Tableau_basededonnée[Code],Tableau_basededonnée[Réservoir],,0)","v":"hh"},{"$f":"_xlfn.XLOOKUP(tbllavage[[#This Row],[Code]],Tableau_basededonnée[Code],Tableau_basededonnée[Cuve(s)],,0)","v":"aa"},{"$f":"_xlfn.XLOOKUP(tbllavage[[#This Row],[Code]],Tableau_basededonnée[Code],Tableau_basededonnée[Capacité],,0)","v":"bb"},{"$f":"_xlfn.XLOOKUP(tbllavage[[#This Row],[Code]],Tableau_basededonnée[Code],Tableau_basededonnée[Réactif],,0)","v":"cc"}]
[431,"2015-03-25",{"$f":"_xlfn.XLOOKUP(tbllavage[[#This Row],[Code]],Tableau_basededonnée[Code],Tableau_basededonnée[Secteur],,0)","v":{"$error":"#N/A"}},{"$f":"_xlfn.XLOOKUP(tbllavage[[#This Row],[Code]],Tableau_basededonnée[Code],Tableau_basededonnée[Syndicat],,0)","v":{"$error":"#N/A"}},{"$f":"_xlfn.XLOOKUP(tbllavage[[#This Row],[Code]],Tableau_basededonnée[Code],Tableau_basededonnée[Communes],,0)","v":{"$error":"#N/A"}},{"$f":"_xlfn.XLOOKUP(tbllavage[[#This Row],[Code]],Tableau_basededonnée[Code],Tableau_basededonnée[Réservoir],,0)","v":{"$error":"#N/A"}},{"$f":"_xlfn.XLOOKUP(tbllavage[[#This Row],[Code]],Tableau_basededonnée[Code],Tableau_basededonnée[Cuve(s)],,0)","v":{"$error":"#N/A"}},{"$f":"_xlfn.XLOOKUP(tbllavage[[#This Row],[Code]],Tableau_basededonnée[Code],Tableau_basededonnée[Capacité],,0)","v":{"$error":"#N/A"}},{"$f":"_xlfn.XLOOKUP(tbllavage[[#This Row],[Code]],Tableau_basededonnée[Code],Tableau_basededonnée[Réactif],,0)","v":{"$error":"#N/A"}}]
[530,"2015-07-22",{"$f":"_xlfn.XLOOKUP(tbllavage[[#This Row],[Code]],Tableau_basededonnée[Code],Tableau_basededonnée[Secteur],,0)","v":{"$error":"#N/A"}},{"$f":"_xlfn.XLOOKUP(tbllavage[[#This Row],[Code]],Tableau_basededonnée[Code],Tableau_basededonnée[Syndicat],,0)","v":{"$error":"#N/A"}},{"$f":"_xlfn.XLOOKUP(tbllavage[[#This Row],[Code]],Tableau_basededonnée[Code],Tableau_basededonnée[Communes],,0)","v":{"$error":"#N/A"}},{"$f":"_xlfn.XLOOKUP(tbllavage[[#This Row],[Code]],Tableau_basededonnée[Code],Tableau_basededonnée[Réservoir],,0)","v":{"$error":"#N/A"}},{"$f":"_xlfn.XLOOKUP(tbllavage[[#This Row],[Code]],Tableau_basededonnée[Code],Tableau_basededonnée[Cuve(s)],,0)","v":{"$error":"#N/A"}},{"$f":"_xlfn.XLOOKUP(tbllavage[[#This Row],[Code]],Tableau_basededonnée[Code],Tableau_basededonnée[Capacité],,0)","v":{"$error":"#N/A"}},{"$f":"_xlfn.XLOOKUP(tbllavage[[#This Row],[Code]],Tableau_basededonnée[Code],Tableau_basededonnée[Réactif],,0)","v":{"$error":"#N/A"}}]
[371,"2015-11-27",{"$f":"_xlfn.XLOOKUP(tbllavage[[#This Row],[Code]],Tableau_basededonnée[Code],Tableau_basededonnée[Secteur],,0)","v":"Sect 413"},{"$f":"_xlfn.XLOOKUP(tbllavage[[#This Row],[Code]],Tableau_basededonnée[Code],Tableau_basededonnée[Syndicat],,0)","v":"ddd"},{"$f":"_xlfn.XLOOKUP(tbllavage[[#This Row],[Code]],Tableau_basededonnée[Code],Tableau_basededonnée[Communes],,0)","v":126},{"$f":"_xlfn.XLOOKUP(tbllavage[[#This Row],[Code]],Tableau_basededonnée[Code],Tableau_basededonnée[Réservoir],,0)","v":"mm"},{"$f":"_xlfn.XLOOKUP(tbllavage[[#This Row],[Code]],Tableau_basededonnée[Code],Tableau_basededonnée[Cuve(s)],,0)","v":"aa"},{"$f":"_xlfn.XLOOKUP(tbllavage[[#This Row],[Code]],Tableau_basededonnée[Code],Tableau_basededonnée[Capacité],,0)","v":"bb"},{"$f":"_xlfn.XLOOKUP(tbllavage[[#This Row],[Code]],Tableau_basededonnée[Code],Tableau_basededonnée[Réactif],,0)","v":"cc"}]
[370,"2015-12-01",{"$f":"_xlfn.XLOOKUP(tbllavage[[#This Row],[Code]],Tableau_basededonnée[Code],Tableau_basededonnée[Secteur],,0)","v":"Sect 413"},{"$f":"_xlfn.XLOOKUP(tbllavage[[#This Row],[Code]],Tableau_basededonnée[Code],Tableau_basededonnée[Syndicat],,0)","v":"zzz"},{"$f":"_xlfn.XLOOKUP(tbllavage[[#This Row],[Code]],Tableau_basededonnée[Code],Tableau_basededonnée[Communes],,0)","v":125},{"$f":"_xlfn.XLOOKUP(tbllavage[[#This Row],[Code]],Tableau_basededonnée[Code],Tableau_basededonnée[Réservoir],,0)","v":"jj"},{"$f":"_xlfn.XLOOKUP(tbllavage[[#This Row],[Code]],Tableau_basededonnée[Code],Tableau_basededonnée[Cuve(s)],,0)","v":"aa"},{"$f":"_xlfn.XLOOKUP(tbllavage[[#This Row],[Code]],Tableau_basededonnée[Code],Tableau_basededonnée[Capacité],,0)","v":"bb"},{"$f":"_xlfn.XLOOKUP(tbllavage[[#This Row],[Code]],Tableau_basededonnée[Code],Tableau_basededonnée[Réactif],,0)","v":"cc"}]
[530,"2015-12-09",{"$f":"_xlfn.XLOOKUP(tbllavage[[#This Row],[Code]],Tableau_basededonnée[Code],Tableau_basededonnée[Secteur],,0)","v":{"$error":"#N/A"}},{"$f":"_xlfn.XLOOKUP(tbllavage[[#This Row],[Code]],Tableau_basededonnée[Code],Tableau_basededonnée[Syndicat],,0)","v":{"$error":"#N/A"}},{"$f":"_xlfn.XLOOKUP(tbllavage[[#This Row],[Code]],Tableau_basededonnée[Code],Tableau_basededonnée[Communes],,0)","v":{"$error":"#N/A"}},{"$f":"_xlfn.XLOOKUP(tbllavage[[#This Row],[Code]],Tableau_basededonnée[Code],Tableau_basededonnée[Réservoir],,0)","v":{"$error":"#N/A"}},{"$f":"_xlfn.XLOOKUP(tbllavage[[#This Row],[Code]],Tableau_basededonnée[Code],Tableau_basededonnée[Cuve(s)],,0)","v":{"$error":"#N/A"}},{"$f":"_xlfn.XLOOKUP(tbllavage[[#This Row],[Code]],Tableau_basededonnée[Code],Tableau_basededonnée[Capacité],,0)","v":{"$error":"#N/A"}},{"$f":"_xlfn.XLOOKUP(tbllavage[[#This Row],[Code]],Tableau_basededonnée[Code],Tableau_basededonnée[Réactif],,0)","v":{"$error":"#N/A"}}]
[311,"2016-01-15",{"$f":"_xlfn.XLOOKUP(tbllavage[[#This Row],[Code]],Tableau_basededonnée[Code],Tableau_basededonnée[Secteur],,0)","v":"Sect 412"},{"$f":"_xlfn.XLOOKUP(tbllavage[[#This Row],[Code]],Tableau_basededonnée[Code],Tableau_basededonnée[Syndicat],,0)","v":"xxx"},{"$f":"_xlfn.XLOOKUP(tbllavage[[#This Row],[Code]],Tableau_basededonnée[Code],Tableau_basededonnée[Communes],,0)","v":124},{"$f":"_xlfn.XLOOKUP(tbllavage[[#This Row],[Code]],Tableau_basededonnée[Code],Tableau_basededonnée[Réservoir],,0)","v":"hh"},{"$f":"_xlfn.XLOOKUP(tbllavage[[#This Row],[Code]],Tableau_basededonnée[Code],Tableau_basededonnée[Cuve(s)],,0)","v":"aa"},{"$f":"_xlfn.XLOOKUP(tbllavage[[#This Row],[Code]],Tableau_basededonnée[Code],Tableau_basededonnée[Capacité],,0)","v":"bb"},{"$f":"_xlfn.XLOOKUP(tbllavage[[#This Row],[Code]],Tableau_basededonnée[Code],Tableau_basededonnée[Réactif],,0)","v":"cc"}]
[310,"2016-02-05",{"$f":"_xlfn.XLOOKUP(tbllavage[[#This Row],[Code]],Tableau_basededonnée[Code],Tableau_basededonnée[Secteur],,0)","v":"Sect 412"},{"$f":"_xlfn.XLOOKUP(tbllavage[[#This Row],[Code]],Tableau_basededonnée[Code],Tableau_basededonnée[Syndicat],,0)","v":"www"},{"$f":"_xlfn.XLOOKUP(tbllavage[[#This Row],[Code]],Tableau_basededonnée[Code],Tableau_basededonnée[Communes],,0)","v":123},{"$f":"_xlfn.XLOOKUP(tbllavage[[#This Row],[Code]],Tableau_basededonnée[Code],Tableau_basededonnée[Réservoir],,0)","v":"nn"},{"$f":"_xlfn.XLOOKUP(tbllavage[[#This Row],[Code]],Tableau_basededonnée[Code],Tableau_basededonnée[Cuve(s)],,0)","v":"aa"},{"$f":"_xlfn.XLOOKUP(tbllavage[[#This Row],[Code]],Tableau_basededonnée[Code],Tableau_basededonnée[Capacité],,0)","v":"bb"},{"$f":"_xlfn.XLOOKUP(tbllavage[[#This Row],[Code]],Tableau_basededonnée[Code],Tableau_basededonnée[Réactif],,0)","v":"cc"}]
[430,"2016-02-12",{"$f":"_xlfn.XLOOKUP(tbllavage[[#This Row],[Code]],Tableau_basededonnée[Code],Tableau_basededonnée[Secteur],,0)","v":{"$error":"#N/A"}},{"$f":"_xlfn.XLOOKUP(tbllavage[[#This Row],[Code]],Tableau_basededonnée[Code],Tableau_basededonnée[Syndicat],,0)","v":{"$error":"#N/A"}},{"$f":"_xlfn.XLOOKUP(tbllavage[[#This Row],[Code]],Tableau_basededonnée[Code],Tableau_basededonnée[Communes],,0)","v":{"$error":"#N/A"}},{"$f":"_xlfn.XLOOKUP(tbllavage[[#This Row],[Code]],Tableau_basededonnée[Code],Tableau_basededonnée[Réservoir],,0)","v":{"$error":"#N/A"}},{"$f":"_xlfn.XLOOKUP(tbllavage[[#This Row],[Code]],Tableau_basededonnée[Code],Tableau_basededonnée[Cuve(s)],,0)","v":{"$error":"#N/A"}},{"$f":"_xlfn.XLOOKUP(tbllavage[[#This Row],[Code]],Tableau_basededonnée[Code],Tableau_basededonnée[Capacité],,0)","v":{"$error":"#N/A"}},{"$f":"_xlfn.XLOOKUP(tbllavage[[#This Row],[Code]],Tableau_basededonnée[Code],Tableau_basededonnée[Réactif],,0)","v":{"$error":"#N/A"}}]
[371,"2016-10-26",{"$f":"_xlfn.XLOOKUP(tbllavage[[#This Row],[Code]],Tableau_basededonnée[Code],Tableau_basededonnée[Secteur],,0)","v":"Sect 413"},{"$f":"_xlfn.XLOOKUP(tbllavage[[#This Row],[Code]],Tableau_basededonnée[Code],Tableau_basededonnée[Syndicat],,0)","v":"ddd"},{"$f":"_xlfn.XLOOKUP(tbllavage[[#This Row],[Code]],Tableau_basededonnée[Code],Tableau_basededonnée[Communes],,0)","v":126},{"$f":"_xlfn.XLOOKUP(tbllavage[[#This Row],[Code]],Tableau_basededonnée[Code],Tableau_basededonnée[Réservoir],,0)","v":"mm"},{"$f":"_xlfn.XLOOKUP(tbllavage[[#This Row],[Code]],Tableau_basededonnée[Code],Tableau_basededonnée[Cuve(s)],,0)","v":"aa"},{"$f":"_xlfn.XLOOKUP(tbllavage[[#This Row],[Code]],Tableau_basededonnée[Code],Tableau_basededonnée[Capacité],,0)","v":"bb"},{"$f":"_xlfn.XLOOKUP(tbllavage[[#This Row],[Code]],Tableau_basededonnée[Code],Tableau_basededonnée[Réactif],,0)","v":"cc"}]
[370,"2016-11-02",{"$f":"_xlfn.XLOOKUP(tbllavage[[#This Row],[Code]],Tableau_basededonnée[Code],Tableau_basededonnée[Secteur],,0)","v":"Sect 413"},{"$f":"_xlfn.XLOOKUP(tbllavage[[#This Row],[Code]],Tableau_basededonnée[Code],Tableau_basededonnée[Syndicat],,0)","v":"zzz"},{"$f":"_xlfn.XLOOKUP(tbllavage[[#This Row],[Code]],Tableau_basededonnée[Code],Tableau_basededonnée[Communes],,0)","v":125},{"$f":"_xlfn.XLOOKUP(tbllavage[[#This Row],[Code]],Tableau_basededonnée[Code],Tableau_basededonnée[Réservoir],,0)","v":"jj"},{"$f":"_xlfn.XLOOKUP(tbllavage[[#This Row],[Code]],Tableau_basededonnée[Code],Tableau_basededonnée[Cuve(s)],,0)","v":"aa"},{"$f":"_xlfn.XLOOKUP(tbllavage[[#This Row],[Code]],Tableau_basededonnée[Code],Tableau_basededonnée[Capacité],,0)","v":"bb"},{"$f":"_xlfn.XLOOKUP(tbllavage[[#This Row],[Code]],Tableau_basededonnée[Code],Tableau_basededonnée[Réactif],,0)","v":"cc"}]
[530,"2016-12-09",{"$f":"_xlfn.XLOOKUP(tbllavage[[#This Row],[Code]],Tableau_basededonnée[Code],Tableau_basededonnée[Secteur],,0)","v":{"$error":"#N/A"}},{"$f":"_xlfn.XLOOKUP(tbllavage[[#This Row],[Code]],Tableau_basededonnée[Code],Tableau_basededonnée[Syndicat],,0)","v":{"$error":"#N/A"}},{"$f":"_xlfn.XLOOKUP(tbllavage[[#This Row],[Code]],Tableau_basededonnée[Code],Tableau_basededonnée[Communes],,0)","v":{"$error":"#N/A"}},{"$f":"_xlfn.XLOOKUP(tbllavage[[#This Row],[Code]],Tableau_basededonnée[Code],Tableau_basededonnée[Réservoir],,0)","v":{"$error":"#N/A"}},{"$f":"_xlfn.XLOOKUP(tbllavage[[#This Row],[Code]],Tableau_basededonnée[Code],Tableau_basededonnée[Cuve(s)],,0)","v":{"$error":"#N/A"}},{"$f":"_xlfn.XLOOKUP(tbllavage[[#This Row],[Code]],Tableau_basededonnée[Code],Tableau_basededonnée[Capacité],,0)","v":{"$error":"#N/A"}},{"$f":"_xlfn.XLOOKUP(tbllavage[[#This Row],[Code]],Tableau_basededonnée[Code],Tableau_basededonnée[Réactif],,0)","v":{"$error":"#N/A"}}]
[311,"2017-01-11",{"$f":"_xlfn.XLOOKUP(tbllavage[[#This Row],[Code]],Tableau_basededonnée[Code],Tableau_basededonnée[Secteur],,0)","v":"Sect 412"},{"$f":"_xlfn.XLOOKUP(tbllavage[[#This Row],[Code]],Tableau_basededonnée[Code],Tableau_basededonnée[Syndicat],,0)","v":"xxx"},{"$f":"_xlfn.XLOOKUP(tbllavage[[#This Row],[Code]],Tableau_basededonnée[Code],Tableau_basededonnée[Communes],,0)","v":124},{"$f":"_xlfn.XLOOKUP(tbllavage[[#This Row],[Code]],Tableau_basededonnée[Code],Tableau_basededonnée[Réservoir],,0)","v":"hh"},{"$f":"_xlfn.XLOOKUP(tbllavage[[#This Row],[Code]],Tableau_basededonnée[Code],Tableau_basededonnée[Cuve(s)],,0)","v":"aa"},{"$f":"_xlfn.XLOOKUP(tbllavage[[#This Row],[Code]],Tableau_basededonnée[Code],Tableau_basededonnée[Capacité],,0)","v":"bb"},{"$f":"_xlfn.XLOOKUP(tbllavage[[#This Row],[Code]],Tableau_basededonnée[Code],Tableau_basededonnée[Réactif],,0)","v":"cc"}]
[310,"2017-01-13",{"$f":"_xlfn.XLOOKUP(tbllavage[[#This Row],[Code]],Tableau_basededonnée[Code],Tableau_basededonnée[Secteur],,0)","v":"Sect 412"},{"$f":"_xlfn.XLOOKUP(tbllavage[[#This Row],[Code]],Tableau_basededonnée[Code],Tableau_basededonnée[Syndicat],,0)","v":"www"},{"$f":"_xlfn.XLOOKUP(tbllavage[[#This Row],[Code]],Tableau_basededonnée[Code],Tableau_basededonnée[Communes],,0)","v":123},{"$f":"_xlfn.XLOOKUP(tbllavage[[#This Row],[Code]],Tableau_basededonnée[Code],Tableau_basededonnée[Réservoir],,0)","v":"nn"},{"$f":"_xlfn.XLOOKUP(tbllavage[[#This Row],[Code]],Tableau_basededonnée[Code],Tableau_basededonnée[Cuve(s)],,0)","v":"aa"},{"$f":"_xlfn.XLOOKUP(tbllavage[[#This Row],[Code]],Tableau_basededonnée[Code],Tableau_basededonnée[Capacité],,0)","v":"bb"},{"$f":"_xlfn.XLOOKUP(tbllavage[[#This Row],[Code]],Tableau_basededonnée[Code],Tableau_basededonnée[Réactif],,0)","v":"cc"}]
[430,"2017-01-26",{"$f":"_xlfn.XLOOKUP(tbllavage[[#This Row],[Code]],Tableau_basededonnée[Code],Tableau_basededonnée[Secteur],,0)","v":{"$error":"#N/A"}},{"$f":"_xlfn.XLOOKUP(tbllavage[[#This Row],[Code]],Tableau_basededonnée[Code],Tableau_basededonnée[Syndicat],,0)","v":{"$error":"#N/A"}},{"$f":"_xlfn.XLOOKUP(tbllavage[[#This Row],[Code]],Tableau_basededonnée[Code],Tableau_basededonnée[Communes],,0)","v":{"$error":"#N/A"}},{"$f":"_xlfn.XLOOKUP(tbllavage[[#This Row],[Code]],Tableau_basededonnée[Code],Tableau_basededonnée[Réservoir],,0)","v":{"$error":"#N/A"}},{"$f":"_xlfn.XLOOKUP(tbllavage[[#This Row],[Code]],Tableau_basededonnée[Code],Tableau_basededonnée[Cuve(s)],,0)","v":{"$error":"#N/A"}},{"$f":"_xlfn.XLOOKUP(tbllavage[[#This Row],[Code]],Tableau_basededonnée[Code],Tableau_basededonnée[Capacité],,0)","v":{"$error":"#N/A"}},{"$f":"_xlfn.XLOOKUP(tbllavage[[#This Row],[Code]],Tableau_basededonnée[Code],Tableau_basededonnée[Réactif],,0)","v":{"$error":"#N/A"}}]
[431,"2017-05-24",{"$f":"_xlfn.XLOOKUP(tbllavage[[#This Row],[Code]],Tableau_basededonnée[Code],Tableau_basededonnée[Secteur],,0)","v":{"$error":"#N/A"}},{"$f":"_xlfn.XLOOKUP(tbllavage[[#This Row],[Code]],Tableau_basededonnée[Code],Tableau_basededonnée[Syndicat],,0)","v":{"$error":"#N/A"}},{"$f":"_xlfn.XLOOKUP(tbllavage[[#This Row],[Code]],Tableau_basededonnée[Code],Tableau_basededonnée[Communes],,0)","v":{"$error":"#N/A"}},{"$f":"_xlfn.XLOOKUP(tbllavage[[#This Row],[Code]],Tableau_basededonnée[Code],Tableau_basededonnée[Réservoir],,0)","v":{"$error":"#N/A"}},{"$f":"_xlfn.XLOOKUP(tbllavage[[#This Row],[Code]],Tableau_basededonnée[Code],Tableau_basededonnée[Cuve(s)],,0)","v":{"$error":"#N/A"}},{"$f":"_xlfn.XLOOKUP(tbllavage[[#This Row],[Code]],Tableau_basededonnée[Code],Tableau_basededonnée[Capacité],,0)","v":{"$error":"#N/A"}},{"$f":"_xlfn.XLOOKUP(tbllavage[[#This Row],[Code]],Tableau_basededonnée[Code],Tableau_basededonnée[Réactif],,0)","v":{"$error":"#N/A"}}]
[310,"2018-01-04",{"$f":"_xlfn.XLOOKUP(tbllavage[[#This Row],[Code]],Tableau_basededonnée[Code],Tableau_basededonnée[Secteur],,0)","v":"Sect 412"},{"$f":"_xlfn.XLOOKUP(tbllavage[[#This Row],[Code]],Tableau_basededonnée[Code],Tableau_basededonnée[Syndicat],,0)","v":"www"},{"$f":"_xlfn.XLOOKUP(tbllavage[[#This Row],[Code]],Tableau_basededonnée[Code],Tableau_basededonnée[Communes],,0)","v":123},{"$f":"_xlfn.XLOOKUP(tbllavage[[#This Row],[Code]],Tableau_basededonnée[Code],Tableau_basededonnée[Réservoir],,0)","v":"nn"},{"$f":"_xlfn.XLOOKUP(tbllavage[[#This Row],[Code]],Tableau_basededonnée[Code],Tableau_basededonnée[Cuve(s)],,0)","v":"aa"},{"$f":"_xlfn.XLOOKUP(tbllavage[[#This Row],[Code]],Tableau_basededonnée[Code],Tableau_basededonnée[Capacité],,0)","v":"bb"},{"$f":"_xlfn.XLOOKUP(tbllavage[[#This Row],[Code]],Tableau_basededonnée[Code],Tableau_basededonnée[Réactif],,0)","v":"cc"}]
[530,"2018-01-17",{"$f":"_xlfn.XLOOKUP(tbllavage[[#This Row],[Code]],Tableau_basededonnée[Code],Tableau_basededonnée[Secteur],,0)","v":{"$error":"#N/A"}},{"$f":"_xlfn.XLOOKUP(tbllavage[[#This Row],[Code]],Tableau_basededonnée[Code],Tableau_basededonnée[Syndicat],,0)","v":{"$error":"#N/A"}},{"$f":"_xlfn.XLOOKUP(tbllavage[[#This Row],[Code]],Tableau_basededonnée[Code],Tableau_basededonnée[Communes],,0)","v":{"$error":"#N/A"}},{"$f":"_xlfn.XLOOKUP(tbllavage[[#This Row],[Code]],Tableau_basededonnée[Code],Tableau_basededonnée[Réservoir],,0)","v":{"$error":"#N/A"}},{"$f":"_xlfn.XLOOKUP(tbllavage[[#This Row],[Code]],Tableau_basededonnée[Code],Tableau_basededonnée[Cuve(s)],,0)","v":{"$error":"#N/A"}},{"$f":"_xlfn.XLOOKUP(tbllavage[[#This Row],[Code]],Tableau_basededonnée[Code],Tableau_basededonnée[Capacité],,0)","v":{"$error":"#N/A"}},{"$f":"_xlfn.XLOOKUP(tbllavage[[#This Row],[Code]],Tableau_basededonnée[Code],Tableau_basededonnée[Réactif],,0)","v":{"$error":"#N/A"}}]
[311,"2018-01-18",{"$f":"_xlfn.XLOOKUP(tbllavage[[#This Row],[Code]],Tableau_basededonnée[Code],Tableau_basededonnée[Secteur],,0)","v":"Sect 412"},{"$f":"_xlfn.XLOOKUP(tbllavage[[#This Row],[Code]],Tableau_basededonnée[Code],Tableau_basededonnée[Syndicat],,0)","v":"xxx"},{"$f":"_xlfn.XLOOKUP(tbllavage[[#This Row],[Code]],Tableau_basededonnée[Code],Tableau_basededonnée[Communes],,0)","v":124},{"$f":"_xlfn.XLOOKUP(tbllavage[[#This Row],[Code]],Tableau_basededonnée[Code],Tableau_basededonnée[Réservoir],,0)","v":"hh"},{"$f":"_xlfn.XLOOKUP(tbllavage[[#This Row],[Code]],Tableau_basededonnée[Code],Tableau_basededonnée[Cuve(s)],,0)","v":"aa"},{"$f":"_xlfn.XLOOKUP(tbllavage[[#This Row],[Code]],Tableau_basededonnée[Code],Tableau_basededonnée[Capacité],,0)","v":"bb"},{"$f":"_xlfn.XLOOKUP(tbllavage[[#This Row],[Code]],Tableau_basededonnée[Code],Tableau_basededonnée[Réactif],,0)","v":"cc"}]
[430,"2018-02-01",{"$f":"_xlfn.XLOOKUP(tbllavage[[#This Row],[Code]],Tableau_basededonnée[Code],Tableau_basededonnée[Secteur],,0)","v":{"$error":"#N/A"}},{"$f":"_xlfn.XLOOKUP(tbllavage[[#This Row],[Code]],Tableau_basededonnée[Code],Tableau_basededonnée[Syndicat],,0)","v":{"$error":"#N/A"}},{"$f":"_xlfn.XLOOKUP(tbllavage[[#This Row],[Code]],Tableau_basededonnée[Code],Tableau_basededonnée[Communes],,0)","v":{"$error":"#N/A"}},{"$f":"_xlfn.XLOOKUP(tbllavage[[#This Row],[Code]],Tableau_basededonnée[Code],Tableau_basededonnée[Réservoir],,0)","v":{"$error":"#N/A"}},{"$f":"_xlfn.XLOOKUP(tbllavage[[#This Row],[Code]],Tableau_basededonnée[Code],Tableau_basededonnée[Cuve(s)],,0)","v":{"$error":"#N/A"}},{"$f":"_xlfn.XLOOKUP(tbllavage[[#This Row],[Code]],Tableau_basededonnée[Code],Tableau_basededonnée[Capacité],,0)","v":{"$error":"#N/A"}},{"$f":"_xlfn.XLOOKUP(tbllavage[[#This Row],[Code]],Tableau_basededonnée[Code],Tableau_basededonnée[Réactif],,0)","v":{"$error":"#N/A"}}]
[370,"2018-03-16",{"$f":"_xlfn.XLOOKUP(tbllavage[[#This Row],[Code]],Tableau_basededonnée[Code],Tableau_basededonnée[Secteur],,0)","v":"Sect 413"},{"$f":"_xlfn.XLOOKUP(tbllavage[[#This Row],[Code]],Tableau_basededonnée[Code],Tableau_basededonnée[Syndicat],,0)","v":"zzz"},{"$f":"_xlfn.XLOOKUP(tbllavage[[#This Row],[Code]],Tableau_basededonnée[Code],Tableau_basededonnée[Communes],,0)","v":125},{"$f":"_xlfn.XLOOKUP(tbllavage[[#This Row],[Code]],Tableau_basededonnée[Code],Tableau_basededonnée[Réservoir],,0)","v":"jj"},{"$f":"_xlfn.XLOOKUP(tbllavage[[#This Row],[Code]],Tableau_basededonnée[Code],Tableau_basededonnée[Cuve(s)],,0)","v":"aa"},{"$f":"_xlfn.XLOOKUP(tbllavage[[#This Row],[Code]],Tableau_basededonnée[Code],Tableau_basededonnée[Capacité],,0)","v":"bb"},{"$f":"_xlfn.XLOOKUP(tbllavage[[#This Row],[Code]],Tableau_basededonnée[Code],Tableau_basededonnée[Réactif],,0)","v":"cc"}]
[371,"2018-04-05",{"$f":"_xlfn.XLOOKUP(tbllavage[[#This Row],[Code]],Tableau_basededonnée[Code],Tableau_basededonnée[Secteur],,0)","v":"Sect 413"},{"$f":"_xlfn.XLOOKUP(tbllavage[[#This Row],[Code]],Tableau_basededonnée[Code],Tableau_basededonnée[Syndicat],,0)","v":"ddd"},{"$f":"_xlfn.XLOOKUP(tbllavage[[#This Row],[Code]],Tableau_basededonnée[Code],Tableau_basededonnée[Communes],,0)","v":126},{"$f":"_xlfn.XLOOKUP(tbllavage[[#This Row],[Code]],Tableau_basededonnée[Code],Tableau_basededonnée[Réservoir],,0)","v":"mm"},{"$f":"_xlfn.XLOOKUP(tbllavage[[#This Row],[Code]],Tableau_basededonnée[Code],Tableau_basededonnée[Cuve(s)],,0)","v":"aa"},{"$f":"_xlfn.XLOOKUP(tbllavage[[#This Row],[Code]],Tableau_basededonnée[Code],Tableau_basededonnée[Capacité],,0)","v":"bb"},{"$f":"_xlfn.XLOOKUP(tbllavage[[#This Row],[Code]],Tableau_basededonnée[Code],Tableau_basededonnée[Réactif],,0)","v":"cc"}]
[431,"2018-06-21",{"$f":"_xlfn.XLOOKUP(tbllavage[[#This Row],[Code]],Tableau_basededonnée[Code],Tableau_basededonnée[Secteur],,0)","v":{"$error":"#N/A"}},{"$f":"_xlfn.XLOOKUP(tbllavage[[#This Row],[Code]],Tableau_basededonnée[Code],Tableau_basededonnée[Syndicat],,0)","v":{"$error":"#N/A"}},{"$f":"_xlfn.XLOOKUP(tbllavage[[#This Row],[Code]],Tableau_basededonnée[Code],Tableau_basededonnée[Communes],,0)","v":{"$error":"#N/A"}},{"$f":"_xlfn.XLOOKUP(tbllavage[[#This Row],[Code]],Tableau_basededonnée[Code],Tableau_basededonnée[Réservoir],,0)","v":{"$error":"#N/A"}},{"$f":"_xlfn.XLOOKUP(tbllavage[[#This Row],[Code]],Tableau_basededonnée[Code],Tableau_basededonnée[Cuve(s)],,0)","v":{"$error":"#N/A"}},{"$f":"_xlfn.XLOOKUP(tbllavage[[#This Row],[Code]],Tableau_basededonnée[Code],Tableau_basededonnée[Capacité],,0)","v":{"$error":"#N/A"}},{"$f":"_xlfn.XLOOKUP(tbllavage[[#This Row],[Code]],Tableau_basededonnée[Code],Tableau_basededonnée[Réactif],,0)","v":{"$error":"#N/A"}}]
[310,"2019-01-11",{"$f":"_xlfn.XLOOKUP(tbllavage[[#This Row],[Code]],Tableau_basededonnée[Code],Tableau_basededonnée[Secteur],,0)","v":"Sect 412"},{"$f":"_xlfn.XLOOKUP(tbllavage[[#This Row],[Code]],Tableau_basededonnée[Code],Tableau_basededonnée[Syndicat],,0)","v":"www"},{"$f":"_xlfn.XLOOKUP(tbllavage[[#This Row],[Code]],Tableau_basededonnée[Code],Tableau_basededonnée[Communes],,0)","v":123},{"$f":"_xlfn.XLOOKUP(tbllavage[[#This Row],[Code]],Tableau_basededonnée[Code],Tableau_basededonnée[Réservoir],,0)","v":"nn"},{"$f":"_xlfn.XLOOKUP(tbllavage[[#This Row],[Code]],Tableau_basededonnée[Code],Tableau_basededonnée[Cuve(s)],,0)","v":"aa"},{"$f":"_xlfn.XLOOKUP(tbllavage[[#This Row],[Code]],Tableau_basededonnée[Code],Tableau_basededonnée[Capacité],,0)","v":"bb"},{"$f":"_xlfn.XLOOKUP(tbllavage[[#This Row],[Code]],Tableau_basededonnée[Code],Tableau_basededonnée[Réactif],,0)","v":"cc"}]
[311,"2019-02-14",{"$f":"_xlfn.XLOOKUP(tbllavage[[#This Row],[Code]],Tableau_basededonnée[Code],Tableau_basededonnée[Secteur],,0)","v":"Sect 412"},{"$f":"_xlfn.XLOOKUP(tbllavage[[#This Row],[Code]],Tableau_basededonnée[Code],Tableau_basededonnée[Syndicat],,0)","v":"xxx"},{"$f":"_xlfn.XLOOKUP(tbllavage[[#This Row],[Code]],Tableau_basededonnée[Code],Tableau_basededonnée[Communes],,0)","v":124},{"$f":"_xlfn.XLOOKUP(tbllavage[[#This Row],[Code]],Tableau_basededonnée[Code],Tableau_basededonnée[Réservoir],,0)","v":"hh"},{"$f":"_xlfn.XLOOKUP(tbllavage[[#This Row],[Code]],Tableau_basededonnée[Code],Tableau_basededonnée[Cuve(s)],,0)","v":"aa"},{"$f":"_xlfn.XLOOKUP(tbllavage[[#This Row],[Code]],Tableau_basededonnée[Code],Tableau_basededonnée[Capacité],,0)","v":"bb"},{"$f":"_xlfn.XLOOKUP(tbllavage[[#This Row],[Code]],Tableau_basededonnée[Code],Tableau_basededonnée[Réactif],,0)","v":"cc"}]
[530,"2019-03-21",{"$f":"_xlfn.XLOOKUP(tbllavage[[#This Row],[Code]],Tableau_basededonnée[Code],Tableau_basededonnée[Secteur],,0)","v":{"$error":"#N/A"}},{"$f":"_xlfn.XLOOKUP(tbllavage[[#This Row],[Code]],Tableau_basededonnée[Code],Tableau_basededonnée[Syndicat],,0)","v":{"$error":"#N/A"}},{"$f":"_xlfn.XLOOKUP(tbllavage[[#This Row],[Code]],Tableau_basededonnée[Code],Tableau_basededonnée[Communes],,0)","v":{"$error":"#N/A"}},{"$f":"_xlfn.XLOOKUP(tbllavage[[#This Row],[Code]],Tableau_basededonnée[Code],Tableau_basededonnée[Réservoir],,0)","v":{"$error":"#N/A"}},{"$f":"_xlfn.XLOOKUP(tbllavage[[#This Row],[Code]],Tableau_basededonnée[Code],Tableau_basededonnée[Cuve(s)],,0)","v":{"$error":"#N/A"}},{"$f":"_xlfn.XLOOKUP(tbllavage[[#This Row],[Code]],Tableau_basededonnée[Code],Tableau_basededonnée[Capacité],,0)","v":{"$error":"#N/A"}},{"$f":"_xlfn.XLOOKUP(tbllavage[[#This Row],[Code]],Tableau_basededonnée[Code],Tableau_basededonnée[Réactif],,0)","v":{"$error":"#N/A"}}]
[430,"2019-03-26",{"$f":"_xlfn.XLOOKUP(tbllavage[[#This Row],[Code]],Tableau_basededonnée[Code],Tableau_basededonnée[Secteur],,0)","v":{"$error":"#N/A"}},{"$f":"_xlfn.XLOOKUP(tbllavage[[#This Row],[Code]],Tableau_basededonnée[Code],Tableau_basededonnée[Syndicat],,0)","v":{"$error":"#N/A"}},{"$f":"_xlfn.XLOOKUP(tbllavage[[#This Row],[Code]],Tableau_basededonnée[Code],Tableau_basededonnée[Communes],,0)","v":{"$error":"#N/A"}},{"$f":"_xlfn.XLOOKUP(tbllavage[[#This Row],[Code]],Tableau_basededonnée[Code],Tableau_basededonnée[Réservoir],,0)","v":{"$error":"#N/A"}},{"$f":"_xlfn.XLOOKUP(tbllavage[[#This Row],[Code]],Tableau_basededonnée[Code],Tableau_basededonnée[Cuve(s)],,0)","v":{"$error":"#N/A"}},{"$f":"_xlfn.XLOOKUP(tbllavage[[#This Row],[Code]],Tableau_basededonnée[Code],Tableau_basededonnée[Capacité],,0)","v":{"$error":"#N/A"}},{"$f":"_xlfn.XLOOKUP(tbllavage[[#This Row],[Code]],Tableau_basededonnée[Code],Tableau_basededonnée[Réactif],,0)","v":{"$error":"#N/A"}}]
[370,"2019-04-19",{"$f":"_xlfn.XLOOKUP(tbllavage[[#This Row],[Code]],Tableau_basededonnée[Code],Tableau_basededonnée[Secteur],,0)","v":"Sect 413"},{"$f":"_xlfn.XLOOKUP(tbllavage[[#This Row],[Code]],Tableau_basededonnée[Code],Tableau_basededonnée[Syndicat],,0)","v":"zzz"},{"$f":"_xlfn.XLOOKUP(tbllavage[[#This Row],[Code]],Tableau_basededonnée[Code],Tableau_basededonnée[Communes],,0)","v":125},{"$f":"_xlfn.XLOOKUP(tbllavage[[#This Row],[Code]],Tableau_basededonnée[Code],Tableau_basededonnée[Réservoir],,0)","v":"jj"},{"$f":"_xlfn.XLOOKUP(tbllavage[[#This Row],[Code]],Tableau_basededonnée[Code],Tableau_basededonnée[Cuve(s)],,0)","v":"aa"},{"$f":"_xlfn.XLOOKUP(tbllavage[[#This Row],[Code]],Tableau_basededonnée[Code],Tableau_basededonnée[Capacité],,0)","v":"bb"},{"$f":"_xlfn.XLOOKUP(tbllavage[[#This Row],[Code]],Tableau_basededonnée[Code],Tableau_basededonnée[Réactif],,0)","v":"cc"}]
[431,"2019-06-18",{"$f":"_xlfn.XLOOKUP(tbllavage[[#This Row],[Code]],Tableau_basededonnée[Code],Tableau_basededonnée[Secteur],,0)","v":{"$error":"#N/A"}},{"$f":"_xlfn.XLOOKUP(tbllavage[[#This Row],[Code]],Tableau_basededonnée[Code],Tableau_basededonnée[Syndicat],,0)","v":{"$error":"#N/A"}},{"$f":"_xlfn.XLOOKUP(tbllavage[[#This Row],[Code]],Tableau_basededonnée[Code],Tableau_basededonnée[Communes],,0)","v":{"$error":"#N/A"}},{"$f":"_xlfn.XLOOKUP(tbllavage[[#This Row],[Code]],Tableau_basededonnée[Code],Tableau_basededonnée[Réservoir],,0)","v":{"$error":"#N/A"}},{"$f":"_xlfn.XLOOKUP(tbllavage[[#This Row],[Code]],Tableau_basededonnée[Code],Tableau_basededonnée[Cuve(s)],,0)","v":{"$error":"#N/A"}},{"$f":"_xlfn.XLOOKUP(tbllavage[[#This Row],[Code]],Tableau_basededonnée[Code],Tableau_basededonnée[Capacité],,0)","v":{"$error":"#N/A"}},{"$f":"_xlfn.XLOOKUP(tbllavage[[#This Row],[Code]],Tableau_basededonnée[Code],Tableau_basededonnée[Réactif],,0)","v":{"$error":"#N/A"}}]
[310,"2020-03-06",{"$f":"_xlfn.XLOOKUP(tbllavage[[#This Row],[Code]],Tableau_basededonnée[Code],Tableau_basededonnée[Secteur],,0)","v":"Sect 412"},{"$f":"_xlfn.XLOOKUP(tbllavage[[#This Row],[Code]],Tableau_basededonnée[Code],Tableau_basededonnée[Syndicat],,0)","v":"www"},{"$f":"_xlfn.XLOOKUP(tbllavage[[#This Row],[Code]],Tableau_basededonnée[Code],Tableau_basededonnée[Communes],,0)","v":123},{"$f":"_xlfn.XLOOKUP(tbllavage[[#This Row],[Code]],Tableau_basededonnée[Code],Tableau_basededonnée[Réservoir],,0)","v":"nn"},{"$f":"_xlfn.XLOOKUP(tbllavage[[#This Row],[Code]],Tableau_basededonnée[Code],Tableau_basededonnée[Cuve(s)],,0)","v":"aa"},{"$f":"_xlfn.XLOOKUP(tbllavage[[#This Row],[Code]],Tableau_basededonnée[Code],Tableau_basededonnée[Capacité],,0)","v":"bb"},{"$f":"_xlfn.XLOOKUP(tbllavage[[#This Row],[Code]],Tableau_basededonnée[Code],Tableau_basededonnée[Réactif],,0)","v":"cc"}]
[430,"2020-03-24",{"$f":"_xlfn.XLOOKUP(tbllavage[[#This Row],[Code]],Tableau_basededonnée[Code],Tableau_basededonnée[Secteur],,0)","v":{"$error":"#N/A"}},{"$f":"_xlfn.XLOOKUP(tbllavage[[#This Row],[Code]],Tableau_basededonnée[Code],Tableau_basededonnée[Syndicat],,0)","v":{"$error":"#N/A"}},{"$f":"_xlfn.XLOOKUP(tbllavage[[#This Row],[Code]],Tableau_basededonnée[Code],Tableau_basededonnée[Communes],,0)","v":{"$error":"#N/A"}},{"$f":"_xlfn.XLOOKUP(tbllavage[[#This Row],[Code]],Tableau_basededonnée[Code],Tableau_basededonnée[Réservoir],,0)","v":{"$error":"#N/A"}},{"$f":"_xlfn.XLOOKUP(tbllavage[[#This Row],[Code]],Tableau_basededonnée[Code],Tableau_basededonnée[Cuve(s)],,0)","v":{"$error":"#N/A"}},{"$f":"_xlfn.XLOOKUP(tbllavage[[#This Row],[Code]],Tableau_basededonnée[Code],Tableau_basededonnée[Capacité],,0)","v":{"$error":"#N/A"}},{"$f":"_xlfn.XLOOKUP(tbllavage[[#This Row],[Code]],Tableau_basededonnée[Code],Tableau_basededonnée[Réactif],,0)","v":{"$error":"#N/A"}}]
[311,"2020-03-27",{"$f":"_xlfn.XLOOKUP(tbllavage[[#This Row],[Code]],Tableau_basededonnée[Code],Tableau_basededonnée[Secteur],,0)","v":"Sect 412"},{"$f":"_xlfn.XLOOKUP(tbllavage[[#This Row],[Code]],Tableau_basededonnée[Code],Tableau_basededonnée[Syndicat],,0)","v":"xxx"},{"$f":"_xlfn.XLOOKUP(tbllavage[[#This Row],[Code]],Tableau_basededonnée[Code],Tableau_basededonnée[Communes],,0)","v":124},{"$f":"_xlfn.XLOOKUP(tbllavage[[#This Row],[Code]],Tableau_basededonnée[Code],Tableau_basededonnée[Réservoir],,0)","v":"hh"},{"$f":"_xlfn.XLOOKUP(tbllavage[[#This Row],[Code]],Tableau_basededonnée[Code],Tableau_basededonnée[Cuve(s)],,0)","v":"aa"},{"$f":"_xlfn.XLOOKUP(tbllavage[[#This Row],[Code]],Tableau_basededonnée[Code],Tableau_basededonnée[Capacité],,0)","v":"bb"},{"$f":"_xlfn.XLOOKUP(tbllavage[[#This Row],[Code]],Tableau_basededonnée[Code],Tableau_basededonnée[Réactif],,0)","v":"cc"}]
[431,"2020-05-19",{"$f":"_xlfn.XLOOKUP(tbllavage[[#This Row],[Code]],Tableau_basededonnée[Code],Tableau_basededonnée[Secteur],,0)","v":{"$error":"#N/A"}},{"$f":"_xlfn.XLOOKUP(tbllavage[[#This Row],[Code]],Tableau_basededonnée[Code],Tableau_basededonnée[Syndicat],,0)","v":{"$error":"#N/A"}},{"$f":"_xlfn.XLOOKUP(tbllavage[[#This Row],[Code]],Tableau_basededonnée[Code],Tableau_basededonnée[Communes],,0)","v":{"$error":"#N/A"}},{"$f":"_xlfn.XLOOKUP(tbllavage[[#This Row],[Code]],Tableau_basededonnée[Code],Tableau_basededonnée[Réservoir],,0)","v":{"$error":"#N/A"}},{"$f":"_xlfn.XLOOKUP(tbllavage[[#This Row],[Code]],Tableau_basededonnée[Code],Tableau_basededonnée[Cuve(s)],,0)","v":{"$error":"#N/A"}},{"$f":"_xlfn.XLOOKUP(tbllavage[[#This Row],[Code]],Tableau_basededonnée[Code],Tableau_basededonnée[Capacité],,0)","v":{"$error":"#N/A"}},{"$f":"_xlfn.XLOOKUP(tbllavage[[#This Row],[Code]],Tableau_basededonnée[Code],Tableau_basededonnée[Réactif],,0)","v":{"$error":"#N/A"}}]
[530,"2020-06-18",{"$f":"_xlfn.XLOOKUP(tbllavage[[#This Row],[Code]],Tableau_basededonnée[Code],Tableau_basededonnée[Secteur],,0)","v":{"$error":"#N/A"}},{"$f":"_xlfn.XLOOKUP(tbllavage[[#This Row],[Code]],Tableau_basededonnée[Code],Tableau_basededonnée[Syndicat],,0)","v":{"$error":"#N/A"}},{"$f":"_xlfn.XLOOKUP(tbllavage[[#This Row],[Code]],Tableau_basededonnée[Code],Tableau_basededonnée[Communes],,0)","v":{"$error":"#N/A"}},{"$f":"_xlfn.XLOOKUP(tbllavage[[#This Row],[Code]],Tableau_basededonnée[Code],Tableau_basededonnée[Réservoir],,0)","v":{"$error":"#N/A"}},{"$f":"_xlfn.XLOOKUP(tbllavage[[#This Row],[Code]],Tableau_basededonnée[Code],Tableau_basededonnée[Cuve(s)],,0)","v":{"$error":"#N/A"}},{"$f":"_xlfn.XLOOKUP(tbllavage[[#This Row],[Code]],Tableau_basededonnée[Code],Tableau_basededonnée[Capacité],,0)","v":{"$error":"#N/A"}},{"$f":"_xlfn.XLOOKUP(tbllavage[[#This Row],[Code]],Tableau_basededonnée[Code],Tableau_basededonnée[Réactif],,0)","v":{"$error":"#N/A"}}]
[370,"2020-07-20",{"$f":"_xlfn.XLOOKUP(tbllavage[[#This Row],[Code]],Tableau_basededonnée[Code],Tableau_basededonnée[Secteur],,0)","v":"Sect 413"},{"$f":"_xlfn.XLOOKUP(tbllavage[[#This Row],[Code]],Tableau_basededonnée[Code],Tableau_basededonnée[Syndicat],,0)","v":"zzz"},{"$f":"_xlfn.XLOOKUP(tbllavage[[#This Row],[Code]],Tableau_basededonnée[Code],Tableau_basededonnée[Communes],,0)","v":125},{"$f":"_xlfn.XLOOKUP(tbllavage[[#This Row],[Code]],Tableau_basededonnée[Code],Tableau_basededonnée[Réservoir],,0)","v":"jj"},{"$f":"_xlfn.XLOOKUP(tbllavage[[#This Row],[Code]],Tableau_basededonnée[Code],Tableau_basededonnée[Cuve(s)],,0)","v":"aa"},{"$f":"_xlfn.XLOOKUP(tbllavage[[#This Row],[Code]],Tableau_basededonnée[Code],Tableau_basededonnée[Capacité],,0)","v":"bb"},{"$f":"_xlfn.XLOOKUP(tbllavage[[#This Row],[Code]],Tableau_basededonnée[Code],Tableau_basededonnée[Réactif],,0)","v":"cc"}]
[371,"2020-09-09",{"$f":"_xlfn.XLOOKUP(tbllavage[[#This Row],[Code]],Tableau_basededonnée[Code],Tableau_basededonnée[Secteur],,0)","v":"Sect 413"},{"$f":"_xlfn.XLOOKUP(tbllavage[[#This Row],[Code]],Tableau_basededonnée[Code],Tableau_basededonnée[Syndicat],,0)","v":"ddd"},{"$f":"_xlfn.XLOOKUP(tbllavage[[#This Row],[Code]],Tableau_basededonnée[Code],Tableau_basededonnée[Communes],,0)","v":126},{"$f":"_xlfn.XLOOKUP(tbllavage[[#This Row],[Code]],Tableau_basededonnée[Code],Tableau_basededonnée[Réservoir],,0)","v":"mm"},{"$f":"_xlfn.XLOOKUP(tbllavage[[#This Row],[Code]],Tableau_basededonnée[Code],Tableau_basededonnée[Cuve(s)],,0)","v":"aa"},{"$f":"_xlfn.XLOOKUP(tbllavage[[#This Row],[Code]],Tableau_basededonnée[Code],Tableau_basededonnée[Capacité],,0)","v":"bb"},{"$f":"_xlfn.XLOOKUP(tbllavage[[#This Row],[Code]],Tableau_basededonnée[Code],Tableau_basededonnée[Réactif],,0)","v":"cc"}]
[310,"2021-03-09",{"$f":"_xlfn.XLOOKUP(tbllavage[[#This Row],[Code]],Tableau_basededonnée[Code],Tableau_basededonnée[Secteur],,0)","v":"Sect 412"},{"$f":"_xlfn.XLOOKUP(tbllavage[[#This Row],[Code]],Tableau_basededonnée[Code],Tableau_basededonnée[Syndicat],,0)","v":"www"},{"$f":"_xlfn.XLOOKUP(tbllavage[[#This Row],[Code]],Tableau_basededonnée[Code],Tableau_basededonnée[Communes],,0)","v":123},{"$f":"_xlfn.XLOOKUP(tbllavage[[#This Row],[Code]],Tableau_basededonnée[Code],Tableau_basededonnée[Réservoir],,0)","v":"nn"},{"$f":"_xlfn.XLOOKUP(tbllavage[[#This Row],[Code]],Tableau_basededonnée[Code],Tableau_basededonnée[Cuve(s)],,0)","v":"aa"},{"$f":"_xlfn.XLOOKUP(tbllavage[[#This Row],[Code]],Tableau_basededonnée[Code],Tableau_basededonnée[Capacité],,0)","v":"bb"},{"$f":"_xlfn.XLOOKUP(tbllavage[[#This Row],[Code]],Tableau_basededonnée[Code],Tableau_basededonnée[Réactif],,0)","v":"cc"}]
[370,"2021-04-01",{"$f":"_xlfn.XLOOKUP(tbllavage[[#This Row],[Code]],Tableau_basededonnée[Code],Tableau_basededonnée[Secteur],,0)","v":"Sect 413"},{"$f":"_xlfn.XLOOKUP(tbllavage[[#This Row],[Code]],Tableau_basededonnée[Code],Tableau_basededonnée[Syndicat],,0)","v":"zzz"},{"$f":"_xlfn.XLOOKUP(tbllavage[[#This Row],[Code]],Tableau_basededonnée[Code],Tableau_basededonnée[Communes],,0)","v":125},{"$f":"_xlfn.XLOOKUP(tbllavage[[#This Row],[Code]],Tableau_basededonnée[Code],Tableau_basededonnée[Réservoir],,0)","v":"jj"},{"$f":"_xlfn.XLOOKUP(tbllavage[[#This Row],[Code]],Tableau_basededonnée[Code],Tableau_basededonnée[Cuve(s)],,0)","v":"aa"},{"$f":"_xlfn.XLOOKUP(tbllavage[[#This Row],[Code]],Tableau_basededonnée[Code],Tableau_basededonnée[Capacité],,0)","v":"bb"},{"$f":"_xlfn.XLOOKUP(tbllavage[[#This Row],[Code]],Tableau_basededonnée[Code],Tableau_basededonnée[Réactif],,0)","v":"cc"}]
[311,"2021-04-27",{"$f":"_xlfn.XLOOKUP(tbllavage[[#This Row],[Code]],Tableau_basededonnée[Code],Tableau_basededonnée[Secteur],,0)","v":"Sect 412"},{"$f":"_xlfn.XLOOKUP(tbllavage[[#This Row],[Code]],Tableau_basededonnée[Code],Tableau_basededonnée[Syndicat],,0)","v":"xxx"},{"$f":"_xlfn.XLOOKUP(tbllavage[[#This Row],[Code]],Tableau_basededonnée[Code],Tableau_basededonnée[Communes],,0)","v":124},{"$f":"_xlfn.XLOOKUP(tbllavage[[#This Row],[Code]],Tableau_basededonnée[Code],Tableau_basededonnée[Réservoir],,0)","v":"hh"},{"$f":"_xlfn.XLOOKUP(tbllavage[[#This Row],[Code]],Tableau_basededonnée[Code],Tableau_basededonnée[Cuve(s)],,0)","v":"aa"},{"$f":"_xlfn.XLOOKUP(tbllavage[[#This Row],[Code]],Tableau_basededonnée[Code],Tableau_basededonnée[Capacité],,0)","v":"bb"},{"$f":"_xlfn.XLOOKUP(tbllavage[[#This Row],[Code]],Tableau_basededonnée[Code],Tableau_basededonnée[Réactif],,0)","v":"cc"}]
[371,"2021-06-04",{"$f":"_xlfn.XLOOKUP(tbllavage[[#This Row],[Code]],Tableau_basededonnée[Code],Tableau_basededonnée[Secteur],,0)","v":"Sect 413"},{"$f":"_xlfn.XLOOKUP(tbllavage[[#This Row],[Code]],Tableau_basededonnée[Code],Tableau_basededonnée[Syndicat],,0)","v":"ddd"},{"$f":"_xlfn.XLOOKUP(tbllavage[[#This Row],[Code]],Tableau_basededonnée[Code],Tableau_basededonnée[Communes],,0)","v":126},{"$f":"_xlfn.XLOOKUP(tbllavage[[#This Row],[Code]],Tableau_basededonnée[Code],Tableau_basededonnée[Réservoir],,0)","v":"mm"},{"$f":"_xlfn.XLOOKUP(tbllavage[[#This Row],[Code]],Tableau_basededonnée[Code],Tableau_basededonnée[Cuve(s)],,0)","v":"aa"},{"$f":"_xlfn.XLOOKUP(tbllavage[[#This Row],[Code]],Tableau_basededonnée[Code],Tableau_basededonnée[Capacité],,0)","v":"bb"},{"$f":"_xlfn.XLOOKUP(tbllavage[[#This Row],[Code]],Tableau_basededonnée[Code],Tableau_basededonnée[Réactif],,0)","v":"cc"}]

{"sheet":"Basededonnée","index":1,"n_rows":5,"n_cols":11,"rows_kept":5,"cut":false,"hidden":false,"merged":[]}
["Code","Date","Mois","Année","Secteur","Syndicat","Communes","Réservoir","Cuve(s)","Capacité","Réactif"]
[310,{"$f":"_xlfn.AGGREGATE(14,6,(Lavage!$B$3:$B$45/(Lavage!$A$3:$A$45=A2)),1)*1","v":"2021-03-09"},{"$f":"PROPER(TEXT(B2,\"mmmm\"))","v":"Mars"},{"$f":"YEAR(Tableau_basededonnée[[#This Row],[Date]])","v":2021},"Sect 412","www",123,"nn","aa","bb","cc"]
[311,{"$f":"_xlfn.AGGREGATE(14,6,(Lavage!$B$3:$B$45/(Lavage!$A$3:$A$45=A3)),1)*1","v":"2021-04-27"},"Avril",{"$f":"YEAR(Tableau_basededonnée[[#This Row],[Date]])","v":2021},"Sect 412","xxx",124,"hh","aa","bb","cc"]
[370,{"$f":"_xlfn.AGGREGATE(14,6,(Lavage!$B$3:$B$45/(Lavage!$A$3:$A$45=A4)),1)*1","v":"2021-04-01"},"Avril",{"$f":"YEAR(Tableau_basededonnée[[#This Row],[Date]])","v":2021},"Sect 413","zzz",125,"jj","aa","bb","cc"]
[371,{"$f":"_xlfn.AGGREGATE(14,6,(Lavage!$B$3:$B$45/(Lavage!$A$3:$A$45=A5)),1)*1","v":"2021-06-04"},"Juin",{"$f":"YEAR(Tableau_basededonnée[[#This Row],[Date]])","v":2021},"Sect 413","ddd",126,"mm","aa","bb","cc"]

{"sheet":"Listederoulante","index":2,"n_rows":27,"n_cols":12,"rows_kept":27,"cut":false,"hidden":false,"merged":[]}
["Nom des secteurs",null,"Sect 411","Sect 412","Sect 413","Sect 421","Sect 422",null,null,"Mois",null,"Année"]
["Sect 411",null,null,null,null,null,null,null,null,"Janvier",null,2015]
["Sect 412",null,null,null,null,null,null,null,null,"Février",null,2016]
["Sect 413",null,null,null,null,null,null,null,null,"Mars",null,2017]
["Sect 421",null,null,null,null,null,null,null,null,"Avril",null,2018]
["Sect 422",null,null,null,null,null,null,null,null,"Mai",null,2019]
[null,null,null,null,null,null,null,null,null,"Juin",null,2020]
[null,null,null,null,null,null,null,null,null,"Juillet",null,2021]
[null,null,null,null,null,null,null,null,null,"Aôut",null,2022]
[null,null,null,null,null,null,null,null,null,"Septembre",null,2023]
[null,null,null,null,null,null,null,null,null,"Octobre",null,2024]
[null,null,null,null,null,null,null,null,null,"Novembre",null,2025]
[null,null,null,null,null,null,null,null,null,"Décembre",null,2026]
[null,null,null,null,null,null,null,null,null,null,null,2027]
[null,null,null,null,null,null,null,null,null,null,null,2028]
[null,null,null,null,null,null,null,null,null,null,null,2029]
[null,null,null,null,null,null,null,null,null,null,null,2030]
[null,null,null,null,null,null,null,null,null,null,null,2031]
[null,null,null,null,null,null,null,null,null,null,null,2032]
[null,null,null,null,null,null,null,null,null,null,null,2033]
[null,null,null,null,null,null,null,null,null,null,null,2034]
[null,null,null,null,null,null,null,null,null,null,null,2035]
[null,null,null,null,null,null,null,null,null,null,null,2036]
[null,null,null,null,null,null,null,null,null,null,null,2037]
[null,null,null,null,null,null,null,null,null,null,null,2038]
[null,null,null,null,null,null,null,null,null,null,null,2039]
[null,null,null,null,null,null,null,null,null,null,null,2040]

{"sheet":"Tableau de bord","index":3,"n_rows":5,"n_cols":10,"rows_kept":5,"cut":false,"hidden":false,"merged":[]}
["Code","Secteur","Syndicat","Communes","Réservoir","Cuve(s)","Capacité","2021","2022","2023"]
[310,"Sect 412","www",123,"nn","aa","bb",{"$f":"IFERROR(INDEX(tbllavage[[Date]:[Date]],(MATCH(1,(tbllavage[[Code]:[Code]]=$A2)*(YEAR(tbllavage[[Date]:[Date]])=VALUE(H$1)),0))),\"\")","v":"2021-03-09"},{"$f":"IFERROR(INDEX(tbllavage[[Date]:[Date]],(MATCH(1,(tbllavage[[Code]:[Code]]=$A2)*(YEAR(tbllavage[[Date]:[Date]])=VALUE(I$1)),0))),\"\")","v":""},{"$f":"IFERROR(INDEX(tbllavage[[Date]:[Date]],(MATCH(1,(tbllavage[[Code]:[Code]]=$A2)*(YEAR(tbllavage[[Date]:[Date]])=VALUE(J$1)),0))),\"\")","v":""}]
[311,"Sect 412","xxx",124,"hh","aa","bb",{"$f":"IFERROR(INDEX(tbllavage[[Date]:[Date]],(MATCH(1,(tbllavage[[Code]:[Code]]=$A3)*(YEAR(tbllavage[[Date]:[Date]])=VALUE(H$1)),0))),\"\")","v":"2021-04-27"},{"$f":"IFERROR(INDEX(tbllavage[[Date]:[Date]],(MATCH(1,(tbllavage[[Code]:[Code]]=$A3)*(YEAR(tbllavage[[Date]:[Date]])=VALUE(I$1)),0))),\"\")","v":""},{"$f":"IFERROR(INDEX(tbllavage[[Date]:[Date]],(MATCH(1,(tbllavage[[Code]:[Code]]=$A3)*(YEAR(tbllavage[[Date]:[Date]])=VALUE(J$1)),0))),\"\")","v":""}]
[370,"Sect 413","zzz",125,"jj","aa","bb",{"$f":"IFERROR(INDEX(tbllavage[[Date]:[Date]],(MATCH(1,(tbllavage[[Code]:[Code]]=$A4)*(YEAR(tbllavage[[Date]:[Date]])=VALUE(H$1)),0))),\"\")","v":"2021-04-01"},{"$f":"IFERROR(INDEX(tbllavage[[Date]:[Date]],(MATCH(1,(tbllavage[[Code]:[Code]]=$A4)*(YEAR(tbllavage[[Date]:[Date]])=VALUE(I$1)),0))),\"\")","v":""},{"$f":"IFERROR(INDEX(tbllavage[[Date]:[Date]],(MATCH(1,(tbllavage[[Code]:[Code]]=$A4)*(YEAR(tbllavage[[Date]:[Date]])=VALUE(J$1)),0))),\"\")","v":""}]
[371,"Sect 413","ddd",126,"mm","aa","bb",{"$f":"IFERROR(INDEX(tbllavage[[Date]:[Date]],(MATCH(1,(tbllavage[[Code]:[Code]]=$A5)*(YEAR(tbllavage[[Date]:[Date]])=VALUE(H$1)),0))),\"\")","v":"2021-06-04"},{"$f":"IFERROR(INDEX(tbllavage[[Date]:[Date]],(MATCH(1,(tbllavage[[Code]:[Code]]=$A5)*(YEAR(tbllavage[[Date]:[Date]])=VALUE(I$1)),0))),\"\")","v":""},{"$f":"IFERROR(INDEX(tbllavage[[Date]:[Date]],(MATCH(1,(tbllavage[[Code]:[Code]]=$A5)*(YEAR(tbllavage[[Date]:[Date]])=VALUE(J$1)),0))),\"\")","v":""}]

{"sheet":"Feuil1","index":4,"n_rows":1382,"n_cols":5,"rows_kept":1382,"cut":false,"hidden":true,"merged":[]}
["Désignation","Lettre de colonne","N° de colonne","Désignation txt","Désignation tableau"]
["Code","A",1,"txtcode"]
["Date","B",2]
["Mois","C",3]
["Année","D",4]
["Secteur","E",5,"cbosecteur","tblsecteur"]
["Syndicat","F",6,"cbosyndicat","tblsyndicat"]
["Communes","G",7,"cbocommune","tblcommune"]
["Réservoir","H",8,"txtréservoir","tblréservoir"]
["Cuve(s)","I",9,"cbocuve","tblcuve"]
["Capacité","J",10,"lblcapacité","tblcapacité"]
["Réactif","K",11,"lblréactif","tblréactif"]
["Echelle cuve","L",12,"lblechellecuve","tblechelle_cuve"]
["Revêtement Int Cuve","M",13,"cborevetement_int_cuve","tblrevetement_int_cuve"]
["Matériau  conduite cuve","N",14,"cbomateriau_conduite_cuve","tblmateriau_conduite_cuve"]
["Conduites cuve","O",15,"cboconduites_cuve","tblconduites_cuve"]
["Crépine (s)","P",16,"cbocrepine","tblcrepine"]
["Parois cuve","Q",17,"cboparois_cuve","tblparois_cuve"]
["Plafond cuve","R",18,"cboplafond_cuve","tblplafond_cuve"]
["Robinetterie cuve","S",19,"cborobinetterie_cuve","tblrobinetterie_cuve"]
["Radier","T",20,"cboradier","tblradier"]
["Vidange","U",21,"cbovidange","tblvidange"]
["Encrassement cuve","V",22,"cboencrassement","tblencrassement"]
["Parois chambre des vannes","W",23,"cboparois_chambre_des_vannes","tblparois_chambre_des_vannes"]
["Plafond chambre des vannes","X",24,"cboplafond_chambre_des_vannes","tblplafond_chambre_des_vannes"]
["Ventilation","Y",25,"cboventilation","tblventilation"]
["Echelles chambre des vannes","Z",26,"cboechelle_chambre_des_vannes","tblechelle_chambre_des_vannes"]
["Matériau conduites chambre des vannes","AA",27,"cbomateriau_conduit_chambre_des_vannes","tblmateriau_conduit_chambre_des_vannes"]
["Conduites chambre des vannes","AB",28,"cboconduit_chambre_des_vannes","tblconduit_chambre_des_vannes"]
["Robinetterie chambre des vannes","AC",29,"cborobinetterie_chambre_des_vannes","tblrobinetterie_chambre_des_vannes"]
["Sol chambre des vannes","AD",30,"cbosol_chambre_des_vannes","tblsol_chambre_des_vannes"]
["Nettoyage chambre des vannes","AE",31,"cbonettoyage_chambre_des_vannes","tblnettoyage_chambre_des_vannes"]
["Porte","AF",32,"cboporte","tblporte"]
["Serrure","AG",33,"cboserrure","tblserrure"]
["Peinture porte","AH",34,"cbopeinture_porte","tblpeinture_porte"]
["Prise d'eau lavage","AI",35,"cboprise_eau_lavage","tblprise_eau_lavage"]
["Electricité","AJ",36,"cboelectricité","tblelectricité"]
["Peinture EXT","AK",37,"cbopeinture_ext","tblpeinture_ext"]
["Peinture INT","AL",38,"cbopeinture_int","tblpeinture_int"]
["Peinture  tuyaux","AM",39,"cbopeinture_tuyaux","tblpeinture_tuyaux"]
["Robinet ARS","AN",40,"cborobinet_ars","tblrobinet_ars"]
["Sécurité","AO",41,"cbosécurité","tblsécurité"]
["Passerelle","AP",42,"cbopasserelle","tblpasserelle"]
["Garde-corps","AQ",43,"cbogarde_corps","tblgarde_corps"]
["Moustiquaire trappe d'accès","AR",44,"cbomoustiquaire_trappe_accés","tblmoustiquaire_trappe_accés"]
["Clôture","AS",45,"cbocloture","tblcloture"]
["Chemin d'accès","AT",46,"cbochemin_d_accés","tblchemin_d_accés"]
["Capot foug ","AU",47,"cbocapot_foug","tblcapot_foug"]
["Cheminée ventilation","AV",48,"cbocheminée_ventilation","tblcheminée_ventilation"]
["Patte à cadenas","AW",49,"cbopatte_à_cadenas","tblpatte_à_cadenas"]
["Observation(s)","AX",50,"txtobservation"]
[]
[]
[]
[]
[]
[]
[]
[]
[]
[]
[]
[]
[]
[]
[]
[]
[]
[]
[]
[]
[]
[]
[]
[]
[]
[]
[]
[]
[]
[]
[]
[]
[]
[]
[]
[]
[]
[]
[]
[]
[]
[]
[]
[]
[]
[]
[]
[]
[]
[]
[]
[]
[]
[]
[]
[]
[]
[]
[]
[]
[]
[]
[]
[]
[]
[]
[]
[]
[]
[]
[]
[]
[]
[]
[]
[]
[]
[]
[]
[]
[]
[]
[]
[]
[]
[]
[]
[]
[]
[]
[]
[]
[]
[]
[]
[]
[]
[]
[]
[]
[]
[]
[]
[]
[]
[]
[]
[]
[]
[]
[]
[]
[]
[]
[]
[]
[]
[]
[]
[]
[]
[]
[]
[]
[]
[]
[]
[]
[]
[]
[]
[]
[]
[]
[]
[]
[]
[]
[]
[]
[]
[]
[]
[]
[]
[]
[]
[]
[]
[]
[]
[]
[]
[]
[]
[]
[]
[]
[]
[]
[]
[]
[]
[]
[]
[]
[]
[]
[]
[]
[]
[]
[]
[]
[]
[]
[]
[]
[]
[]
[]
[]
[]
[]
[]
[]
[]
[]
[]
[]
[]
[]
[]
[]
[]
[]
[]
[]
[]
[]
[]
[]
[]
[]
[]
[]
[]
[]
[]
[]
[]
[]
[]
[]
[]
[]
[]
[]
[]
[]
[]
[]
[]
[]
[]
[]
[]
[]
[]
[]
[]
[]
[]
[]
[]
[]
[]
[]
[]
[]
[]
[]
[]
[]
[]
[]
[]
[]
[]
[]
[]
[]
[]
[]
[]
[]
[]
[]
[]
[]
[]
[]
[]
[]
[]
[]
[]
[]
[]
[]
[]
[]
[]
[]
[]
[]
[]
[]
[]
[]
[]
[]
[]
[]
[]
[]
[]
[]
[]
[]
[]
[]
[]
[]
[]
[]
[]
[]
[]
[]
[]
[]
[]
[]
[]
[]
[]
[]
[]
[]
[]
[]
[]
[]
[]
[]
[]
[]
[]
[]
[]
[]
[]
[]
[]
[]
[]
[]
[]
[]
[]
[]
[]
[]
[]
[]
[]
[]
[]
[]
[]
[]
[]
[]
[]
[]
[]
[]
[]
[]
[]
[]
[]
[]
[]
[]
[]
[]
[]
[]
[]
[]
[]
[]
[]
[]
[]
[]
[]
[]
[]
[]
[]
[]
[]
[]
[]
[]
[]
[]
[]
[]
[]
[]
[]
[]
[]
[]
[]
[]
[]
[]
[]
[]
[]
[]
[]
[]
[]
[]
[]
[]
[]
[]
[]
[]
[]
[]
[]
[]
[]
[]
[]
[]
[]
[]
[]
[]
[]
[]
[]
[]
[]
[]
[]
[]
[]
[]
[]
[]
[]
[]
[]
[]
[]
[]
[]
[]
[]
[]
[]
[]
[]
[]
[]
[]
[]
[]
[]
[]
[]
[]
[]
[]
[]
[]
[]
[]
[]
[]
[]
[]
[]
[]
[]
[]
[]
[]
[]
[]
[]
[]
[]
[]
[]
[]
[]
[]
[]
[]
[]
[]
[]
[]
[]
[]
[]
[]
[]
[]
[]
[]
[]
[]
[]
[]
[]
[]
[]
[]
[]
[]
[]
[]
[]
[]
[]
[]
[]
[]
[]
[]
[]
[]
[]
[]
[]
[]
[]
[]
[]
[]
[]
[]
[]
[]
[]
[]
[]
[]
[]
[]
[]
[]
[]
[]
[]
[]
[]
[]
[]
[]
[]
[]
[]
[]
[]
[]
[]
[]
[]
[]
[]
[]
[]
[]
[]
[]
[]
[]
[]
[]
[]
[]
[]
[]
[]
[]
[]
[]
[]
[]
[]
[]
[]
[]
[]
[]
[]
[]
[]
[]
[]
[]
[]
[]
[]
[]
[]
[]
[]
[]
[]
[]
[]
[]
[]
[]
[]
[]
[]
[]
[]
[]
[]
[]
[]
[]
[]
[]
[]
[]
[]
[]
[]
[]
[]
[]
[]
[]
[]
[]
[]
[]
[]
[]
[]
[]
[]
[]
[]
[]
[]
[]
[]
[]
[]
[]
[]
[]
[]
[]
[]
[]
[]
[]
[]
[]
[]
[]
[]
[]
[]
[]
[]
[]
[]
[]
[]
[]
[]
[]
[]
[]
[]
[]
[]
[]
[]
[]
[]
[]
[]
[]
[]
[]
[]
[]
[]
[]
[]
[]
[]
[]
[]
[]
[]
[]
[]
[]
[]
[]
[]
[]
[]
[]
[]
[]
[]
[]
[]
[]
[]
[]
[]
[]
[]
[]
[]
[]
[]
[]
[]
[]
[]
[]
[]
[]
[]
[]
[]
[]
[]
[]
[]
[]
[]
[]
[]
[]
[]
[]
[]
[]
[]
[]
[]
[]
[]
[]
[]
[]
[]
[]
[]
[]
[]
[]
[]
[]
[]
[]
[]
[]
[]
[]
[]
[]
[]
[]
[]
[]
[]
[]
[]
[]
[]
[]
[]
[]
[]
[]
[]
[]
[]
[]
[]
[]
[]
[]
[]
[]
[]
[]
[]
[]
[]
[]
[]
[]
[]
[]
[]
[]
[]
[]
[]
[]
[]
[]
[]
[]
[]
[]
[]
[]
[]
[]
[]
[]
[]
[]
[]
[]
[]
[]
[]
[]
[]
[]
[]
[]
[]
[]
[]
[]
[]
[]
[]
[]
[]
[]
[]
[]
[]
[]
[]
[]
[]
[]
[]
[]
[]
[]
[]
[]
[]
[]
[]
[]
[]
[]
[]
[]
[]
[]
[]
[]
[]
[]
[]
[]
[]
[]
[]
[]
[]
[]
[]
[]
[]
[]
[]
[]
[]
[]
[]
[]
[]
[]
[]
[]
[]
[]
[]
[]
[]
[]
[]
[]
[]
[]
[]
[]
[]
[]
[]
[]
[]
[]
[]
[]
[]
[]
[]
[]
[]
[]
[]
[]
[]
[]
[]
[]
[]
[]
[]
[]
[]
[]
[]
[]
[]
[]
[]
[]
[]
[]
[]
[]
[]
[]
[]
[]
[]
[]
[]
[]
[]
[]
[]
[]
[]
[]
[]
[]
[]
[]
[]
[]
[]
[]
[]
[]
[]
[]
[]
[]
[]
[]
[]
[]
[]
[]
[]
[]
[]
[]
[]
[]
[]
[]
[]
[]
[]
[]
[]
[]
[]
[]
[]
[]
[]
[]
[]
[]
[]
[]
[]
[]
[]
[]
[]
[]
[]
[]
[]
[]
[]
[]
[]
[]
[]
[]
[]
[]
[]
[]
[]
[]
[]
[]
[]
[]
[]
[]
[]
[]
[]
[]
[]
[]
[]
[]
[]
[]
[]
[]
[]
[]
[]
[]
[]
[]
[]
[]
[]
[]
[]
[]
[]
[]
[]
[]
[]
[]
[]
[]
[]
[]
[]
[]
[]
[]
[]
[]
[]
[]
[]
[]
[]
[]
[]
[]
[]
[]
[]
[]
[]
[]
[]
[]
[]
[]
[]
[]
[]
[]
[]
[]
[]
[]
[]
[]
[]
[]
[]
[]
[]
[]
[]
[]
[]
[]
[]
[]
[]
[]
[]
[]
[]
[]
[]
[]
[]
[]
[]
[]
[]
[]
[]
[]
[]
[]
[]
[]
[]
[]
[]
[]
[]
[]
[]
[]
[]
[]
[]
[]
[]
[]
[]
[]
[]
[]
[]
[]
[]
[]
[]
[]
[]
[]
[]
[]
[]
[]
[]
[]
[]
[]
[]
[]
[]
[]
[]
[]
[]
[]
[]
[]
[]
[]
[]
[]
[]
[]
[]
[]
[]
[]
[]
[]
[]
[]
[]
[]
[]
[]
[]
[]
[]
[]
[]
[]
[]
[]
[]
[]
[]
[]
[]
[]
[]
[]
[]
[]
[]
[]
[]
[]
[]
[]
[]
[]
[]
[]
[]
[]
[]
[]
[]
[]
[]
[]
[]
[]
[]
[]
[]
[]
[]
[]
[]
[]
[]
[]
[]
[]
[]
[]
[]
[]
[]
[]
[]
[]
[]
[]
[]
[]
[]
[]
[]
[]
[]
[]
[]
[]
[]
[]
[]
[]
[]
[]
[]
[]
[]
[]
[]
[]
[]
[]
[]
[]
[]
[]
[]
[]
[]
[]
[]
[]
[]
[]
[]
[]
[]
[]
[]
[]
[]
[]
[]
[]
[]
[]
[]
[]
[]
[]
[]
[]
[]
[]
[]
[]
[]
[]
[]
[]
[]
[]
[]
[]
[]
[]
[]
[]
[]
[]
[]
[]
[]
[]
[]
[]
[]
[]
[]
[]
[]
[]
[]
[]
[]
[]
[]
[]
[]
[]
[null,null,"2021-12-24"]